fUST/lending_fUST_20240813
["ID","MTS","AMOUNT","RATE_DAILY","PERIOD"]
[334714870,1723498251056,-500.0,0.00015085,2]
[334714871,1723498251066,-173.935755,0.00015085,2]
[334714872,1723498251076,-500.0,0.00015085,2]
[334714873,1723498251086,-151.0,0.00015085,2]
[334714874,1723498251096,-151.0,0.00015085,2]
[334714875,1723498251106,-151.0,0.00015085,2]
[334714876,1723498251116,-500.0,0.00015085,2]
[334714877,1723498251125,-744.68,0.00015085,2]
[334714878,1723498251135,-607.63,0.00015085,2]
[334714879,1723498251146,-500.0,0.00015085,2]
[334714880,1723498251157,-500.0,0.00015085,2]
[334714881,1723498251166,-500.0,0.00015085,2]
[334714882,1723498251177,-500.0,0.00015085,2]
[334714883,1723498251186,-1167.36,0.00015085,2]
[334714884,1723498251196,-500.0,0.00015085,2]
[334714885,1723498251205,-500.0,0.00015085,2]
[334714886,1723498251215,-544.06,0.00015085,2]
[334714887,1723498251224,-532.3408573,0.00015085,2]
[334714888,1723498251235,-564.98108192,0.00015085,2]
[334714889,1723498251245,-500.0,0.00015085,2]
[334714890,1723498251257,-500.0,0.00015085,2]
[334714891,1723498251269,-551.31,0.00015085,2]
[334714892,1723498251279,-500.0,0.00015085,2]
[334714893,1723498251288,-500.0,0.00015085,2]
[334714894,1723498251298,-500.0,0.00015085,2]
[334714895,1723498251308,-1010.63,0.00015085,2]
[334714896,1723498251318,-1077.45,0.00015085,2]
[334714897,1723498251328,-500.0,0.00015085,2]
[334714898,1723498251338,-500.0,0.00015085,2]
[334714899,1723498251348,-2049.95,0.00015085,2]
[334714900,1723498251359,-3511.1,0.00015085,2]
[334714901,1723498251369,-500.0,0.00015085,2]
[334714902,1723498251381,-530.34207039,0.00015085,2]
[334714903,1723498251391,-500.0,0.00015085,2]
[334714904,1723498251402,-500.0,0.00015085,2]
[334714905,1723498251411,-500.0,0.00015085,2]
[334714906,1723498251423,-500.0,0.00015085,2]
[334714907,1723498251432,-1608.39,0.00015085,2]
[334714908,1723498251443,-558.32,0.00015085,2]
[334714909,1723498251453,-500.0,0.00015085,2]
[334714910,1723498251465,-1008.07,0.00015085,2]
[334714911,1723498251475,-506.81009319,0.00015085,2]
[334714912,1723498251486,-500.0,0.00015085,2]
[334714913,1723498251495,-500.0,0.00015085,2]
[334714914,1723498251505,-500.0,0.00015085,2]
[334714915,1723498251515,-500.0,0.00015085,2]
[334714916,1723498251532,-500.0,0.00015085,2]
[334714917,1723498251542,-500.0,0.00015085,2]
[334714918,1723498251552,-500.0,0.00015085,2]
[334714919,1723498251562,-279.986963,0.00015086,2]
[334714920,1723498251572,-167.796544,0.00015086,2]
[334714921,1723498251582,-279.986963,0.00015086,2]
[334714922,1723498251592,-500.0,0.00015087,2]
[334714923,1723498251602,-500.0,0.00015087,2]
[334714924,1723498251612,-500.0,0.00015087,2]
[334714925,1723498251623,-500.0,0.00015087,2]
[334714926,1723498251633,-500.0,0.00015087,2]
[334714927,1723498251643,-500.0,0.00015087,2]
[334714928,1723498251653,-500.0,0.00015087,2]
[334714929,1723498251662,-500.0,0.00015087,2]
[334714930,1723498251672,-500.0,0.00015087,2]
[334714931,1723498251683,-279.986963,0.00015087,2]
[334714932,1723498251695,-279.986963,0.00015087,2]
[334714933,1723498251704,-500.0,0.00015087,2]
[334714934,1723498251715,-654.34,0.00015087,2]
[334714935,1723498251725,-2310.21,0.00015087,2]
[334714936,1723498251735,-500.0,0.00015087,2]
[334714937,1723498251745,-507.87468215,0.00015087,2]
[334714938,1723498251755,-500.0,0.00015087,2]
[334714939,1723498251766,-553.96,0.00015087,2]
[334714940,1723498251776,-500.0,0.00015087,2]
[334714941,1723498251787,-617.72,0.00015087,2]
[334714942,1723498251797,-500.0,0.00015087,2]
[334714943,1723498251807,-500.0,0.00015087,2]
[334714944,1723498251816,-500.0,0.00015087,2]
[334714945,1723498251825,-500.0,0.00015087,2]
[334714946,1723498251842,-500.0,0.00015087,2]
[334714947,1723498251856,-500.0,0.00015087,2]
[334714948,1723498251866,-500.0,0.00015087,2]
[334714949,1723498251877,-500.0,0.00015087,2]
[334714950,1723498251887,-654.22,0.00015087,2]
[334714951,1723498251897,-151.216415,0.00015087,2]
[334714952,1723498251907,-151.216415,0.00015087,2]
[334714953,1723498251917,-173.935755,0.00015087,2]
[334714954,1723498251929,-173.935755,0.00015087,2]
[334714955,1723498251939,-151.0,0.00015087,2]
[334714956,1723498251950,-239.842406,0.00015087,2]
[334714957,1723498251961,-151.0,0.00015087,2]
[334714958,1723498251971,-751.469496,0.00015087,2]
[334714959,1723498251981,-751.469496,0.00015087,2]
[334714960,1723498251993,-431.730112,0.00015087,2]
[334714961,1723498252003,-431.730112,0.00015087,2]
[334714962,1723498252016,-416.913543,0.00015087,2]
[334714963,1723498252026,-416.913543,0.00015087,2]
[334714964,1723498252036,-263.914663,0.00015087,2]
[334714965,1723498252046,-263.914663,0.00015087,2]
[334714966,1723498252058,-202.356079,0.00015087,2]
[334714967,1723498252068,-202.356079,0.00015087,2]
[334714968,1723498252078,-370.934511,0.00015087,2]
[334714969,1723498252088,-979.367237,0.00015087,2]
[334714970,1723498252097,-151.0,0.00015087,2]
[334714971,1723498252107,-370.934511,0.00015087,2]
[334714972,1723498252117,-979.367237,0.00015087,2]
[334714973,1723498252127,-197.830991,0.00015087,2]
[334714974,1723498252136,-197.830998,0.00015087,2]
[334714975,1723498252147,-186.931064,0.00015087,2]
[334714976,1723498252156,-186.931059,0.00015087,2]
[334714977,1723498252166,-624.713945,0.00015087,2]
[334714978,1723498252176,-624.713945,0.00015087,2]
[334714979,1723498252185,-150.112233,0.000151,2]
[334714980,1723498252195,-500.0,0.0001534,2]
[334714981,1723498252204,-2183.24,0.0001534,2]
[334714982,1723498252214,-8248.44,0.0001534,2]
[334714983,1723498252224,-918.59,0.0001534,2]
[334714984,1723498252234,-1326.94,0.0001534,2]
[334714985,1723498252243,-1496.48,0.0001534,2]
[334714986,1723498252253,-500.0,0.0001534,2]
[334714987,1723498252263,-808.47,0.0001534,2]
[334714988,1723498252275,-431.730112,0.00015349,2]
[334714989,1723498252285,-431.730109,0.00015349,2]
[334714990,1723498252294,-953.41,0.00015349,2]
[334714991,1723498252304,-416.913543,0.00015349,2]
[334714992,1723498252314,-416.913546,0.00015349,2]
[334714993,1723498252324,-500.0,0.00015349,2]
[334714994,1723498252333,-4853.39,0.00015349,2]
[334714995,1723498252343,-1502.12,0.00015349,2]
[334714996,1723498252354,-263.914663,0.00015349,2]
[334714997,1723498252364,-263.914658,0.00015349,2]
[334714998,1723498252374,-4805.67,0.00015349,2]
[334714999,1723498252387,-1320.11,0.00015349,2]
[334715000,1723498252396,-1670.32,0.00015349,2]
[334715001,1723498252406,-202.356079,0.00015349,2]
[334715002,1723498252417,-202.356077,0.00015349,2]
[334715003,1723498252430,-370.934511,0.00015349,2]
[334715004,1723498252440,-979.367237,0.00015349,2]
[334715005,1723498252453,-151.0,0.00015349,2]
[334715006,1723498252465,-370.934514,0.00015349,2]
[334715007,1723498252475,-979.36723,0.00015349,2]
[334715008,1723498252484,-500.0,0.00015349,2]
[334715009,1723498252494,-1616.55,0.00015349,2]
[334715010,1723498252505,-500.17,0.00015349,2]
[334715011,1723498252518,-1682.28,0.00015349,2]
[334715012,1723498252528,-1099.91,0.00015349,2]
[334715013,1723498252539,-8839.39,0.00015349,2]
[334715014,1723498252549,-500.0,0.0001535,2]
[334715015,1723498252559,-706.27,0.0001535,2]
[334715016,1723498252569,-631.53,0.0001535,2]
[334715017,1723498252578,-767.43,0.0001535,2]
[334715018,1723498252588,-151.216415,0.0001535,2]
[334715019,1723498252597,-151.216415,0.0001535,2]
[334715020,1723498252607,-500.0,0.0001535,2]
[334715021,1723498252617,-917.61,0.0001535,2]
[334715022,1723498252626,-500.0,0.0001535,2]
[334715023,1723498252635,-500.0,0.0001535,2]
[334715024,1723498252646,-173.935755,0.0001535,2]
[334715025,1723498252655,-173.935755,0.0001535,2]
[334715026,1723498252665,-500.0,0.0001535,2]
[334715027,1723498252674,-151.0,0.0001535,2]
[334715028,1723498252684,-699.63,0.0001535,2]
[334715029,1723498252696,-151.0,0.0001535,2]
[334715030,1723498252706,-500.0,0.0001535,2]
[334715031,1723498252716,-500.0,0.0001535,2]
[334715032,1723498252725,-751.469496,0.0001535,2]
[334715033,1723498252735,-751.469489,0.0001535,2]
[334715034,1723498252744,-582.64,0.0001535,2]
[334715035,1723498252754,-500.0,0.0001535,2]
[334715036,1723498252763,-988.64,0.0001535,2]
[334715037,1723498252775,-2575.87,0.0001535,2]
[334715038,1723498252785,-500.0,0.0001535,2]
[334715039,1723498252795,-1223.36,0.0001535,2]
[334715040,1723498252805,-500.0,0.0001535,2]
[334715041,1723498252814,-1510.27,0.0001535,2]
[334715042,1723498252824,-1055.72,0.0001535,2]
[334715043,1723498252834,-500.0,0.0001535,2]
[334715044,1723498252843,-1264.65,0.0001535,2]
[334715045,1723498252853,-1539.16,0.0001535,2]
[334715046,1723498252863,-918.41,0.0001535,2]
[334715047,1723498252874,-500.0,0.0001535,2]
[334715048,1723498252883,-500.0,0.0001535,2]
[334715049,1723498252892,-661.7,0.0001535,2]
[334715050,1723498252902,-950.15,0.0001535,2]
[334715051,1723498252911,-500.0,0.0001535,2]
[334715052,1723498252922,-500.0,0.0001535,2]
[334715053,1723498252932,-4514.91,0.0001535,2]
[334715054,1723498252941,-1529.06,0.0001535,2]
[334715055,1723498252950,-355.27328709,0.0001535,2]
[334715056,1723498253129,-676.12,0.0001535,2]
[334715057,1723498253141,-565.80287964,0.0001535,2]
[334715058,1723498253153,-668.67,0.0001535,2]
[334715059,1723498253163,-500.0,0.0001535,2]
[334715060,1723498253174,-988.18,0.0001535,2]
[334715061,1723498253184,-782.82,0.0001535,2]
[334715062,1723498253194,-500.0,0.0001535,2]
[334715063,1723498253205,-1480.11,0.0001535,2]
[334715064,1723498253214,-895.65,0.0001535,2]
[334715065,1723498253225,-500.0,0.0001535,2]
[334715066,1723498253236,-500.0,0.0001535,2]
[334715067,1723498253247,-842.55,0.0001535,2]
[334715068,1723498253258,-500.0,0.0001535,2]
[334715069,1723498253269,-721.43,0.0001535,2]
[334715070,1723498253279,-624.713945,0.0001535,2]
[334715071,1723498253288,-2443.76,0.0001535,2]
[334715072,1723498253298,-624.71394846,0.0001535,2]
[334715073,1723498253308,-3554.56,0.0001535,2]
[334715074,1723498253318,-500.0,0.00015351,2]
[334715075,1723498253329,-500.0,0.00015351,2]
[334715076,1723498253340,-500.0,0.00015351,2]
[334715077,1723498253353,-500.0,0.00015351,2]
[334715078,1723498253362,-546.25,0.00015351,2]
[334715079,1723498253371,-730.4,0.00015351,2]
[334715080,1723498253384,-723.15,0.00015351,2]
[334715081,1723498253394,-500.0,0.00015351,2]
[334715082,1723498253403,-637.82,0.00015351,2]
[334715083,1723498253412,-500.0,0.00015351,2]
[334715084,1723498253423,-503.25,0.00015351,2]
[334715085,1723498253433,-469.82258987,0.00015351,2]
[334715086,1723498253442,-500.0,0.00015351,2]
[334715087,1723498253452,-1097.68,0.00015351,2]
[334715088,1723498253462,-500.0,0.00015351,2]
[334715089,1723498253471,-500.0,0.00015351,2]
[334715090,1723498253481,-500.0,0.00015351,2]
[334715091,1723498253490,-536.74,0.00015351,2]
[334715092,1723498253499,-500.0,0.00015351,2]
[334715093,1723498253509,-555.71,0.00015351,2]
[334715094,1723498253521,-500.0,0.00015351,2]
[334715095,1723498253531,-741.11,0.00015351,2]
[334715096,1723498253544,-500.0,0.00015351,2]
[334715097,1723498253554,-1466.67,0.00015351,2]
[334715098,1723498253564,-1136.66,0.00015351,2]
[334715099,1723498253573,-1086.4,0.00015351,2]
[334715100,1723498253583,-1220.44,0.00015351,2]
[334715101,1723498253592,-500.0,0.00015351,2]
[334715102,1723498253601,-6490.07,0.00015351,2]
[334715103,1723498253611,-500.0,0.00015351,2]
[334715104,1723498253620,-616.66,0.00015351,2]
[334715105,1723498253630,-572.77,0.00015351,2]
[334715106,1723498253641,-1280.35,0.00015351,2]
[334715107,1723498253651,-771.38,0.00015351,2]
[334715108,1723498253661,-500.0,0.00015351,2]
[334715109,1723498253671,-1454.59,0.00015351,2]
[334715110,1723498253680,-1365.61,0.00015351,2]
[334715111,1723498253689,-548.09,0.00015351,2]
[334715112,1723498253698,-500.0,0.00015351,2]
[334715113,1723498253708,-500.0,0.00015351,2]
[334715114,1723498253720,-862.07,0.00015351,2]
[334715115,1723498253731,-2063.02,0.00015351,2]
[334715116,1723498253743,-976.58,0.00015351,2]
[334715117,1723498253753,-1205.06,0.00015351,2]
[334715118,1723498253764,-500.0,0.00015359,2]
[334715119,1723498253775,-500.0,0.00015359,2]
[334715120,1723498253784,-500.0,0.00015359,2]
[334715121,1723498253793,-196.11088236,0.00015359,2]
[334715122,1723498255511,194.835944,0.00013947,2]
[334715123,1723498336554,19473.22221664,0.00013947,2]
[334715124,1723498336919,2108.95048088,0.00013947,2]
[334715125,1723498338877,273.37336231,9.9e-05,2]
[334715126,1723498340199,245.20138133,0.00013947,2]
[334715127,1723498350198,404.72502915,0.00013947,2]
[334715128,1723498386072,3789.42834729,0.00013947,2]
[334715129,1723498389658,8063.80564773,0.00013947,2]
[334715130,1723498393431,1480.90524126,0.00013947,2]
[334715131,1723498422938,2108.95048088,0.00013947,2]
[334715132,1723498435534,3612.07677201,0.00013947,2]
[334715133,1723498435668,4717.1442193,0.00013947,2]
[334715134,1723498453964,245.20138133,0.00013947,2]
[334715135,1723498459417,19483.33629138,0.00013947,2]
[334715136,1723498464710,245.20138133,0.00013947,2]
[334715137,1723498496072,3789.42834729,0.00013947,2]
[334715138,1723498526431,3346.36227368,0.00013947,2]
[334715139,1723498531116,321.0590436,0.00013699,2]
[334715140,1723498532673,138.27227438,0.00013947,2]
[334715141,1723498532697,4578.87194492,0.00013947,2]
[334715142,1723498555568,3612.07677201,0.00013947,2]
[334715143,1723498561676,633.17195137,9.999e-05,2]
[334715144,1723498568418,19483.33629138,0.00013947,2]
[334715145,1723498581801,245.20138133,0.00013947,2]
[334715147,1723498596097,3789.42834729,0.00013947,2]
[334715148,1723498605372,157.64271038,9.999e-05,2]
[334715149,1723498609178,1242.76412345,0.00013947,2]
[334715150,1723498611740,245.20138133,0.00013947,2]
[334715151,1723498650559,184.7559161,0.00013947,2]
[334715152,1723498675430,17030.41129979,0.00013947,2]
[334715153,1723498687917,154.83943354,0.00013947,2]
[334715154,1723498712086,3789.42834729,0.00013947,2]
[334715155,1723498726339,174.37281606,0.00013947,2]
[334715156,1723498727812,245.20138133,0.00013947,2]
[334715157,1723498744819,213.626585,0.00013535,2]
[334715158,1723498754896,309.45844772,0.00013947,2]
[334715159,1723498798103,1667.13272704,0.00013535,2]
[334715160,1723498854765,166.36316184,0.00013535,2]
[334715161,1723498977774,245.16629452,0.00013535,2]
[334715162,1723499093783,245.16629452,0.00013535,2]
[334715163,1723499094474,283.15029162,0.0001,2]
[334715164,1723499119079,573.29125117,9.999e-05,2]
[334715165,1723499190793,245.16629452,9.999e-05,2]
[334715167,1723499237391,245.16629452,0.0001212,2]
[334715168,1723499238147,213.626585,0.00013502,2]
[334715169,1723499298185,543.08033697,9.999e-05,2]
[334715170,1723499348814,154.89923821,9.999e-05,2]
[334715171,1723499351028,506.48190828,9.999e-05,2]
[334715173,1723499370425,342.05014288,9.999e-05,2]
[334715175,1723499372391,143.00781904,9.999e-05,2]
[334715176,1723499372419,12.08931506,9.999e-05,2]
[334715177,1723499382772,371.74927574,9.999e-05,2]
[334715178,1723499425179,378.67407966,9.999e-05,2]
[334715219,1723499432881,-161.024086,0.00014247,2]
[334715221,1723499432891,-126.035914,0.00014247,2]
[334715223,1723499432904,-37.686404,0.00014247,2]
[334715225,1723499432914,-326.13647714,0.000143,2]
[334715227,1723499432924,-308.59030694,0.00014335,2]
[334715258,1723499438407,-3322.48486469,0.000144,2]
[334715260,1723499438418,-202.1320443,0.00014408,2]
[334715261,1723499438428,-300.0,0.00014415,2]
[334715262,1723499438437,-300.0,0.00014415,2]
[334715263,1723499438446,-2000.0,0.00014417,2]
[334715264,1723499438456,-500.0,0.00014427,2]
[334715265,1723499438465,-500.0,0.00014427,2]
[334715266,1723499438475,-250.93125227,0.00014427,2]
[334715267,1723499438485,-500.0,0.00014427,2]
[334715268,1723499438494,-500.0,0.00014427,2]
[334715269,1723499438503,-500.0,0.00014427,2]
[334715270,1723499438512,-500.0,0.00014427,2]
[334715271,1723499438522,-500.0,0.00014427,2]
[334715272,1723499438531,-500.0,0.00014427,2]
[334715273,1723499438540,-500.0,0.00014427,2]
[334715274,1723499438549,-500.0,0.00014427,2]
[334715275,1723499438559,-500.0,0.00014427,2]
[334715276,1723499438568,-500.0,0.00014427,2]
[334715277,1723499438577,-500.0,0.00014427,2]
[334715278,1723499438587,-500.0,0.00014427,2]
[334715279,1723499438597,-500.0,0.00014427,2]
[334715280,1723499438607,-500.0,0.00014427,2]
[334715281,1723499438616,-500.0,0.00014427,2]
[334715282,1723499438626,-536.02607522,0.00014427,2]
[334715283,1723499438636,-500.0,0.00014427,2]
[334715284,1723499438645,-175.78862415,0.00014427,2]
[334715285,1723499438655,-500.0,0.00014427,2]
[334715286,1723499438667,-500.0,0.00014427,2]
[334715287,1723499438676,-500.0,0.00014427,2]
[334715288,1723499438685,-500.0,0.00014427,2]
[334715289,1723499438694,-194.89187434,0.00014427,2]
[334715290,1723499438703,-500.0,0.00014427,2]
[334715291,1723499438712,-500.0,0.00014427,2]
[334715292,1723499438722,-500.0,0.00014427,2]
[334715293,1723499438735,-500.0,0.00014427,2]
[334715294,1723499438745,-500.0,0.00014427,2]
[334715295,1723499438754,-500.0,0.00014427,2]
[334715296,1723499438763,-500.0,0.00014427,2]
[334715297,1723499438773,-500.0,0.00014427,2]
[334715298,1723499438782,-500.0,0.00014427,2]
[334715299,1723499438792,-500.0,0.00014427,2]
[334715300,1723499438801,-500.0,0.00014427,2]
[334715301,1723499438811,-500.0,0.00014427,2]
[334715302,1723499438820,-500.0,0.00014427,2]
[334715303,1723499438830,-500.0,0.00014427,2]
[334715304,1723499438839,-500.0,0.00014427,2]
[334715305,1723499438848,-500.0,0.00014427,2]
[334715306,1723499438858,-500.0,0.00014427,2]
[334715307,1723499438867,-500.0,0.00014427,2]
[334715308,1723499438876,-354.02417807,0.00014428,2]
[334715309,1723499438886,-207.28315379,0.00014428,2]
[334715310,1723499438896,-500.0,0.00014428,2]
[334715311,1723499438905,-500.0,0.00014428,2]
[334715312,1723499438914,-500.0,0.00014428,2]
[334715313,1723499438923,-500.0,0.00014428,2]
[334715314,1723499438933,-500.0,0.00014428,2]
[334715315,1723499438942,-500.0,0.00014428,2]
[334715316,1723499438951,-500.0,0.00014428,2]
[334715317,1723499438960,-500.0,0.00014428,2]
[334715318,1723499438969,-500.0,0.00014428,2]
[334715319,1723499438978,-500.0,0.00014428,2]
[334715320,1723499438987,-500.0,0.00014428,2]
[334715321,1723499438996,-500.0,0.00014428,2]
[334715322,1723499439006,-451.74507517,0.00014428,2]
[334715323,1723499439015,-500.0,0.00014428,2]
[334715324,1723499439024,-500.0,0.00014428,2]
[334715325,1723499439033,-500.0,0.00014428,2]
[334715326,1723499439042,-1989.23,0.00014428,2]
[334715327,1723499439051,-395.50604003,0.00014428,2]
[334715328,1723499439060,-7547.94,0.00014428,2]
[334715329,1723499439069,-1217.79,0.00014428,2]
[334715330,1723499439078,-742.73,0.00014428,2]
[334715331,1723499439087,-1371.06,0.00014428,2]
[334715332,1723499439096,-11332.8012942,0.00014429,2]
[334715333,1723499439109,-101000.3593348,0.00014429,2]
[334715334,1723499439119,-509.39676028,0.00014435,2]
[334715335,1723499439128,-527.41057258,0.00014435,2]
[334715336,1723499439137,-500.0,0.00014435,2]
[334715337,1723499439146,-500.0,0.00014435,2]
[334715338,1723499439155,-510.94107302,0.00014435,2]
[334715339,1723499439165,-500.0,0.00014435,2]
[334715340,1723499439175,-500.0,0.00014435,2]
[334715341,1723499439184,-500.0,0.00014435,2]
[334715342,1723499439194,-500.0,0.00014435,2]
[334715343,1723499439203,-500.0,0.00014435,2]
[334715344,1723499439212,-500.0,0.00014435,2]
[334715345,1723499439222,-500.0,0.00014435,2]
[334715346,1723499439232,-500.0,0.00014435,2]
[334715347,1723499439242,-573.85377433,0.00014435,2]
[334715348,1723499439252,-500.0,0.00014435,2]
[334715349,1723499439263,-500.0,0.00014435,2]
[334715350,1723499439272,-577.68,0.00014435,2]
[334715351,1723499439281,-500.0,0.00014435,2]
[334715352,1723499439290,-500.0,0.00014435,2]
[334715353,1723499439299,-500.0,0.00014435,2]
[334715354,1723499439308,-500.0,0.00014435,2]
[334715355,1723499439318,-500.0,0.00014435,2]
[334715356,1723499439327,-500.0,0.00014435,2]
[334715357,1723499439336,-500.0,0.00014435,2]
[334715358,1723499439345,-500.0,0.00014435,2]
[334715359,1723499439355,-500.0,0.00014435,2]
[334715360,1723499439365,-998.40255591,0.00014437,2]
[334715361,1723499439374,-88888.0,0.00014437,2]
[334715362,1723499439383,-839.62,0.00014437,2]
[334715363,1723499439392,-869.15,0.00014438,2]
[334715364,1723499439402,-500.0,0.00014438,2]
[334715365,1723499439411,-4410.12,0.00014438,2]
[334715366,1723499439420,-1367.95,0.00014438,2]
[334715367,1723499439429,-4401.67,0.00014438,2]
[334715368,1723499439439,-1202.48,0.00014438,2]
[334715369,1723499439448,-1532.89,0.00014438,2]
[334715370,1723499439459,-500.0,0.00014438,2]
[334715371,1723499439468,-500.0,0.00014438,2]
[334715372,1723499439479,-500.0,0.00014438,2]
[334715373,1723499439488,-1485.95,0.00014438,2]
[334715374,1723499439497,-500.0,0.00014438,2]
[334715375,1723499439506,-1546.38,0.00014438,2]
[334715376,1723499439515,-1007.54,0.00014438,2]
[334715377,1723499439525,-500.0,0.00014438,2]
[334715378,1723499439535,-7734.46,0.00014438,2]
[334715379,1723499439545,-28144.24143799,0.00014439,2]
[334715380,1723499439554,-3322.48486469,0.00014473,2]
[334715381,1723499439563,-27537.25187002,0.00014497,2]
[334715382,1723499439573,-112333.160629,0.00014497,2]
[334715383,1723499439582,-150.112233,0.000145,2]
[334715384,1723499439591,-150.112233,0.000145,2]
[334715385,1723499439601,-500.0,0.00014506,2]
[334715386,1723499439611,-112333.160629,0.00014507,2]
[334715387,1723499439620,-204.43492489,0.00014507,2]
[334715388,1723499439630,-500.0,0.00014507,2]
[334715389,1723499439639,-500.0,0.00014507,2]
[334715390,1723499439649,-645.98,0.00014507,2]
[334715391,1723499439658,-500.0,0.00014507,2]
[334715392,1723499439667,-500.0,0.00014507,2]
[334715393,1723499439677,-500.0,0.00014507,2]
[334715394,1723499439686,-500.0,0.00014507,2]
[334715395,1723499439696,-500.0,0.00014507,2]
[334715396,1723499439706,-500.0,0.00014507,2]
[334715397,1723499439715,-512.19781729,0.00014507,2]
[334715398,1723499439725,-500.0,0.00014507,2]
[334715399,1723499439738,-578.38,0.00014507,2]
[334715400,1723499439748,-702.84,0.00014507,2]
[334715401,1723499439757,-500.0,0.00014507,2]
[334715402,1723499439767,-500.0,0.00014507,2]
[334715403,1723499439777,-840.45,0.00014507,2]
[334715404,1723499439787,-500.0,0.00014507,2]
[334715405,1723499439796,-500.0,0.00014507,2]
[334715407,1723499439805,-500.0,0.00014507,2]
[334715409,1723499439815,-500.0,0.00014507,2]
[334715410,1723499439825,-500.0,0.00014507,2]
[334715411,1723499439835,-509.81,0.00014507,2]
[334715412,1723499439844,-640.11,0.00014507,2]
[334715413,1723499439854,-865.06,0.00014507,2]
[334715414,1723499439864,-500.0,0.00014507,2]
[334715415,1723499439872,-500.0,0.00014507,2]
[334715416,1723499439881,-504.90175956,0.00014507,2]
[334715417,1723499439891,-500.0,0.00014507,2]
[334715418,1723499439900,-2479.89,0.00014507,2]
[334715419,1723499439909,-500.0,0.00014507,2]
[334715420,1723499439919,-1594.04,0.00014507,2]
[334715421,1723499439928,-923.75,0.00014507,2]
[334715422,1723499439937,-500.0,0.00014507,2]
[334715423,1723499439948,-1388.24,0.00014507,2]
[334715424,1723499439959,-1181.06,0.00014507,2]
[334715425,1723499439969,-1410.51,0.00014507,2]
[334715426,1723499439978,-500.0,0.00014507,2]
[334715427,1723499439987,-845.07,0.00014507,2]
[334715428,1723499439996,-1161.99,0.00014507,2]
[334715429,1723499440005,-500.0,0.00014507,2]
[334715430,1723499440014,-500.0,0.00014507,2]
[334715431,1723499440023,-502.59732915,0.00014507,2]
[334715432,1723499440032,-500.0,0.00014507,2]
[334715434,1723499440042,-500.0,0.00014507,2]
[334715436,1723499440051,-500.0,0.00014507,2]
[334715437,1723499440060,-500.0,0.00014507,2]
[334715438,1723499440070,-500.0,0.00014507,2]
[334715440,1723499440079,-874.14,0.00014507,2]
[334715441,1723499440088,-1397.45,0.00014507,2]
[334715443,1723499440097,-355.27328709,0.00014507,2]
[334715444,1723499440107,-4155.1,0.00014507,2]
[334715445,1723499440116,-500.0,0.00014507,2]
[334715446,1723499440125,-864.65,0.00014507,2]
[334715447,1723499440135,-500.0,0.00014507,2]
[334715448,1723499440144,-500.0,0.00014507,2]
[334715449,1723499440154,-749.85,0.00014507,2]
[334715450,1723499440164,-500.0,0.00014507,2]
[334715451,1723499440173,-500.0,0.00014507,2]
[334715452,1723499440182,-500.0,0.00014507,2]
[334715453,1723499440192,-500.0,0.00014507,2]
[334715454,1723499440202,-500.0,0.00014507,2]